[Event "Mistrovství Čech mládeže 2023 - HD16"]
[Site "Harrachov, Czech Republic"]
[Date "2023.10.23"]
[Round "4.16"]
[White "Dominiková, Denisa"]
[Black "Martinkovič, Adam"]
[Result "0-1"]
[TimeControl "90m + 30s"]
[WhiteElo "1445"]
[BlackElo "1680"]

1. e4 {[%clk 01:30:55]} {[%emt 00:00:04]} c6 {[%clk 01:29:08]} {[%emt
00:01:53]} 2. Nc3 {[%clk 01:31:13]} {[%emt 00:00:12]} d5 {[%clk 01:29:31]}
{[%emt 00:00:07]} 3. Nf3 {[%clk 01:31:28]} {[%emt 00:00:14]} Bg4 {[%clk
01:29:42]} {[%emt 00:00:20]} 4. h3 {[%clk 01:31:33]} {[%emt 00:00:25]} Bh5
{[%clk 01:30:02]} {[%emt 00:00:10]} 5. exd5 {[%clk 01:31:27]} {[%emt 00:00:36]}
cxd5 {[%clk 01:27:09]} {[%emt 00:03:23]} 6. Bb5+ {[%clk 01:31:19]} {[%emt
00:00:37]} Nc6 {[%clk 01:26:51]} {[%emt 00:00:49]} 7. g4 {[%clk 01:31:18]}
{[%emt 00:00:31]} Bg6 {[%clk 01:26:54]} {[%emt 00:00:28]} 8. Ne5 {[%clk
01:30:49]} {[%emt 00:00:58]} Qd6 {[%clk 01:23:57]} {[%emt 00:03:28]} 9. d4
{[%clk 01:20:27]} {[%emt 00:10:51]} a6 {[%clk 01:22:51]} {[%emt 00:01:37]} 10.
Bxc6+ {[%clk 01:18:09]} {[%emt 00:02:48]} bxc6 {[%clk 01:23:15]} {[%emt
00:00:06]} 11. h4 {[%clk 01:09:24]} {[%emt 00:09:15]} h6 {[%clk 01:22:19]}
{[%emt 00:01:27]} 12. f4 {[%clk 01:01:35]} {[%emt 00:08:18]} Bh7 {[%clk
01:18:35]} {[%emt 00:04:13]} 13. Be3 {[%clk 00:51:38]} {[%emt 00:10:28]} Nf6
{[%clk 01:13:40]} {[%emt 00:05:25]} 14. f5 {[%clk 00:48:38]} {[%emt 00:03:29]}
Nd7 {[%clk 01:12:33]} {[%emt 00:01:38]} 15. Nd3 {[%clk 00:45:42]} {[%emt
00:03:26]} e6 {[%clk 01:11:09]} {[%emt 00:01:54]} 16. Qf3 {[%clk 00:37:32]}
{[%emt 00:08:38]} exf5 {[%clk 01:10:35]} {[%emt 00:01:06]} 17. gxf5 {[%clk
00:37:27]} {[%emt 00:00:36]} Qf6 {[%clk 01:10:32]} {[%emt 00:00:32]} 18. Rf1
{[%clk 00:33:00]} {[%emt 00:04:56]} Qxh4+ {[%clk 01:10:40]} {[%emt 00:00:22]}
19. Kd2 {[%clk 00:31:57]} {[%emt 00:01:34]} Be7 {[%clk 01:08:20]} {[%emt
00:02:51]} 20. Nf4 {[%clk 00:26:41]} {[%emt 00:05:45]} Nf6 {[%clk 01:02:44]}
{[%emt 00:06:07]} 21. Rg1 {[%clk 00:23:50]} {[%emt 00:03:20]} Bd6 {[%clk
00:55:32]} {[%emt 00:07:43]} 22. Rxg7 {[%clk 00:22:47]} {[%emt 00:01:33]} Bxf4
{[%clk 00:54:10]} {[%emt 00:01:52]} 23. Rh1 {[%clk 00:20:23]} {[%emt 00:02:52]}
Bxe3+ {[%clk 00:52:23]} {[%emt 00:02:18]} 24. Kxe3 {[%clk 00:18:35]} {[%emt
00:02:18]} Ng4+ {[%clk 00:51:44]} {[%emt 00:01:09]} 25. Rxg4 {[%clk 00:16:54]}
{[%emt 00:02:11]} Qf6 {[%clk 00:52:01]} {[%emt 00:00:11]} 26. Rhg1 {[%clk
00:15:31]} {[%emt 00:01:54]} Kf8 {[%clk 00:51:17]} {[%emt 00:01:14]} 27. Rf1
{[%clk 00:13:40]} {[%emt 00:02:21]} Rg8 {[%clk 00:50:28]} {[%emt 00:01:19]} 28.
Rxg8+ {[%clk 00:12:56]} {[%emt 00:01:15]} Kxg8 {[%clk 00:50:45]} {[%emt
00:00:13]} 29. Ne2 {[%clk 00:12:07]} {[%emt 00:01:19]} Re8+ {[%clk 00:49:28]}
{[%emt 00:01:47]} 30. Kd2 {[%clk 00:10:58]} {[%emt 00:01:40]} Qg5+ {[%clk
00:49:19]} {[%emt 00:00:38]} 31. Kd1 {[%clk 00:10:45]} {[%emt 00:00:43]} Qf6
{[%clk 00:47:13]} {[%emt 00:02:36]} 32. c3 {[%clk 00:09:50]} {[%emt 00:01:26]}
Kf8 {[%clk 00:46:09]} {[%emt 00:01:34]} 33. Ng3 {[%clk 00:09:16]} {[%emt
00:01:03]} Ke7 {[%clk 00:45:30]} {[%emt 00:01:10]} 34. Qd3 {[%clk 00:07:23]}
{[%emt 00:02:23]} Qg5 {[%clk 00:39:57]} {[%emt 00:06:04]} 35. f6+ {[%clk
00:05:50]} {[%emt 00:02:02]} Kd8 {[%clk 00:40:17]} {[%emt 00:00:10]} 36. Qxh7
{[%clk 00:04:43]} {[%emt 00:01:36]} Qxg3 {[%clk 00:40:37]} {[%emt 00:00:09]} 37.
Qf5 {[%clk 00:03:46]} {[%emt 00:01:28]} Qe3 {[%clk 00:39:47]} {[%emt 00:01:20]}
38. Qf3 {[%clk 00:01:14]} {[%emt 00:03:03]} Qxf3+ {[%clk 00:39:11]} {[%emt
00:01:06]} 39. Rxf3 {[%clk 00:01:37]} {[%emt 00:00:07]} Re6 {[%clk 00:39:35]}
{[%emt 00:00:06]} 40. Kc2 {[%clk 00:01:14]} {[%emt 00:00:53]} Kc7 {[%clk
00:39:54]} {[%emt 00:00:11]} 41. Kb3 {[%clk 00:00:35]} {[%emt 00:01:09]} h5
{[%clk 00:39:00]} {[%emt 00:01:23]} 42. Rf2 {[%clk 00:00:38]} {[%emt 00:00:28]}
h4 {[%clk 00:39:22]} {[%emt 00:00:08]} 43. Kb4 {[%clk 00:00:39]} {[%emt
00:00:29]} Kb6 {[%clk 00:39:39]} {[%emt 00:00:13]} 44. b3 {[%clk 00:00:45]}
{[%emt 00:00:24]} Re4 {[%clk 00:38:25]} {[%emt 00:01:45]} 45. a4 {[%clk
00:00:42]} {[%emt 00:00:33]} a5+ {[%clk 00:38:40]} {[%emt 00:00:15]} 46. Ka3
{[%clk 00:01:09]} {[%emt 00:00:02]} Re3 {[%clk 00:38:27]} {[%emt 00:00:42]} 47.
Kb2 {[%clk 00:01:06]} {[%emt 00:00:33]} h3 {[%clk 00:38:30]} {[%emt 00:00:27]}
48. Rh2 {[%clk 00:00:37]} {[%emt 00:00:59]} Rg3 {[%clk 00:38:41]} {[%emt
00:00:20]} 49. Ka3 {[%clk 00:00:51]} {[%emt 00:00:15]} Rxc3 {[%clk 00:38:56]}
{[%emt 00:00:15]} 50. Kb2 {[%clk 00:01:01]} {[%emt 00:00:19]} Rg3 {[%clk
00:39:19]} {[%emt 00:00:07]} 51. Ka3 {[%clk 00:01:14]} {[%emt 00:00:17]} c5
{[%clk 00:39:38]} {[%emt 00:00:12]} 52. dxc5+ {[%clk 00:00:44]} {[%emt
00:01:01]} Kxc5 {[%clk 00:40:01]} {[%emt 00:00:06]} 53. Rh1 {[%clk 00:01:01]}
{[%emt 00:00:12]} d4 {[%clk 00:40:20]} {[%emt 00:00:11]} 54. Rc1+ {[%clk
00:00:53]} {[%emt 00:00:38]} Kd5 {[%clk 00:40:44]} {[%emt 00:00:08]} 55. Rh1
{[%clk 00:00:45]} {[%emt 00:00:37]} Ke4 {[%clk 00:40:58]} {[%emt 00:00:16]} 56.
Kb2 {[%clk 00:00:35]} {[%emt 00:00:40]} Rg2+ {[%clk 00:41:19]} {[%emt
00:00:09]} 57. Ka3 {[%clk 00:00:34]} {[%emt 00:00:31]} h2 {[%clk 00:41:43]}
{[%emt 00:00:06]} 58. b4 {[%clk 00:00:45]} {[%emt 00:00:19]} axb4+ {[%clk
00:41:46]} {[%emt 00:00:27]} 59. Kb3 {[%clk 00:00:34]} {[%emt 00:00:41]} d3
{[%clk 00:40:16]} {[%emt 00:02:00]} 60. a5 {[%clk 00:00:34]} {[%emt 00:00:30]}
Kd5 {[%clk 00:40:37]} {[%emt 00:00:10]} 61. Kxb4 {[%clk 00:00:48]} {[%emt
00:00:15]} Kc6 {[%clk 00:39:51]} {[%emt 00:01:15]} 62. Rc1+ {[%clk 00:00:39]}
{[%emt 00:00:40]} Kb7 {[%clk 00:40:11]} {[%emt 00:00:10]} 63. Rh1 {[%clk
00:00:58]} {[%emt 00:00:11]} d2 {[%clk 00:40:32]} {[%emt 00:00:10]} 64. Kc5
{[%clk 00:00:34]} {[%emt 00:00:54]} Rg1 {[%clk 00:40:42]} {[%emt 00:00:19]} 65.
Rxh2 {[%clk 00:00:51]} {[%emt 00:00:13]} d1=Q {[%clk 00:41:01]} {[%emt
00:00:10]} 66. Rb2+ {[%clk 00:00:34]} {[%emt 00:00:48]} Ka7 {[%clk 00:41:24]}
{[%emt 00:00:08]} 67. Kb4 {[%clk 00:00:32]} {[%emt 00:00:31]} Qd4+ {[%clk
00:41:30]} {[%emt 00:00:24]} 68. Ka3 {[%clk 00:00:50]} {[%emt 00:00:13]} Rg3+
{[%clk 00:41:50]} {[%emt 00:00:10]} 0-1

[Event "Mistrovství Čech mládeže 2023 - HD16"]
[Site "Harrachov, Czech Republic"]
[Date "2023.10.23"]
[Round "4.17"]
[White "Mrázek, Adam"]
[Black "Maršík, Ondřej"]
[Result "0-1"]
[TimeControl "90m + 30s"]
[WhiteElo "1669"]
[BlackElo "1459"]

1. c4 {[%clk 01:30:56]} {[%emt 00:00:03]} e5 {[%clk 01:30:37]} {[%emt
00:00:24]} 2. g3 {[%clk 01:31:06]} {[%emt 00:00:20]} c6 {[%clk 01:29:50]}
{[%emt 00:01:17]} 3. d4 {[%clk 01:30:27]} {[%emt 00:01:08]} e4 {[%clk
01:27:48]} {[%emt 00:02:32]} 4. a3 {[%clk 01:29:52]} {[%emt 00:01:06]} d5
{[%clk 01:24:08]} {[%emt 00:04:10]} 5. Nc3 {[%clk 01:29:16]} {[%emt 00:01:06]}
Nf6 {[%clk 01:21:36]} {[%emt 00:03:02]} 6. Bg5 {[%clk 01:29:03]} {[%emt
00:00:42]} Be6 {[%clk 01:20:47]} {[%emt 00:01:19]} 7. f3 {[%clk 01:20:01]}
{[%emt 00:09:33]} exf3 {[%clk 01:17:33]} {[%emt 00:03:44]} 8. Nxf3 {[%clk
01:20:11]} {[%emt 00:00:19]} Be7 {[%clk 01:12:56]} {[%emt 00:05:08]} 9. Bg2
{[%clk 01:18:39]} {[%emt 00:02:02]} h6 {[%clk 01:10:57]} {[%emt 00:02:29]} 10.
Bf4 {[%clk 01:18:12]} {[%emt 00:00:56]} Nbd7 {[%clk 01:09:21]} {[%emt
00:02:07]} 11. O-O {[%clk 01:17:27]} {[%emt 00:01:14]} O-O {[%clk 01:07:54]}
{[%emt 00:01:58]} 12. Qc2 {[%clk 01:10:08]} {[%emt 00:07:48]} dxc4 {[%clk
01:01:40]} {[%emt 00:06:44]} 13. e4 {[%clk 01:08:56]} {[%emt 00:01:43]} Nb6
{[%clk 00:55:40]} {[%emt 00:06:29]} 14. Rad1 {[%clk 00:58:16]} {[%emt
00:11:10]} Nh5 {[%clk 00:49:14]} {[%emt 00:06:56]} 15. Be3 {[%clk 00:54:44]}
{[%emt 00:04:02]} f5 {[%clk 00:47:48]} {[%emt 00:01:57]} 16. Ne5 {[%clk
00:40:17]} {[%emt 00:14:56]} fxe4 {[%clk 00:40:34]} {[%emt 00:07:45]} 17. Bxe4
{[%clk 00:25:55]} {[%emt 00:14:52]} Nf6 {[%clk 00:35:53]} {[%emt 00:05:10]} 18.
Bg6 {[%clk 00:18:25]} {[%emt 00:08:01]} Nbd5 {[%clk 00:32:54]} {[%emt
00:03:29]} 19. Nxd5 {[%clk 00:16:41]} {[%emt 00:02:14]} Qxd5 {[%clk 00:30:02]}
{[%emt 00:03:21]} 20. Qd2 {[%clk 00:07:09]} {[%emt 00:10:03]} Ne4 {[%clk
00:22:38]} {[%emt 00:07:53]} 21. Qc2 {[%clk 00:06:32]} {[%emt 00:01:08]} Nf6
{[%clk 00:22:44]} {[%emt 00:00:23]} 22. Qc1 {[%clk 00:06:51]} {[%emt 00:00:12]}
Bh3 {[%clk 00:19:55]} {[%emt 00:03:19]} 23. Rf2 {[%clk 00:05:01]} {[%emt
00:02:20]} Ng4 {[%clk 00:18:45]} {[%emt 00:01:39]} 24. Rxf8+ {[%clk 00:00:32]}
{[%emt 00:04:59]} Rxf8 {[%clk 00:18:45]} {[%emt 00:00:31]} 25. Qc2 {[%clk
00:00:35]} {[%emt 00:00:27]} Nxe3 {[%clk 00:11:21]} {[%emt 00:07:53]} 26. Bh7+
{[%clk 00:00:36]} {[%emt 00:00:29]} Kh8 {[%clk 00:11:45]} {[%emt 00:00:07]} 27.
Ng6+ {[%clk 00:00:59]} {[%emt 00:00:07]} Kxh7 {[%clk 00:11:59]} {[%emt
00:00:16]} 28. Nxf8+ {[%clk 00:00:44]} {[%emt 00:00:44]} Kg8 {[%clk 00:12:18]}
{[%emt 00:00:10]} 29. Qe2 {[%clk 00:00:33]} {[%emt 00:00:42]} Nxd1 {[%clk
00:11:05]} {[%emt 00:01:43]} 30. Ng6 {[%clk 00:00:33]} {[%emt 00:00:30]} Qxd4+
{[%clk 00:10:55]} {[%emt 00:00:40]} 0-1

[Event "Mistrovství Čech mládeže 2023 - HD16"]
[Site "Harrachov, Czech Republic"]
[Date "2023.10.23"]
[Round "4.18"]
[White "Bauer, Sebastian"]
[Black "Dobsa, Emma"]
[Result "0-1"]
[TimeControl "90m + 30s"]
[WhiteElo "1366"]
[BlackElo "1616"]

1. d4 {[%clk 01:29:39]} {[%emt 00:01:20]} d5 {[%clk 01:30:59]} {[%emt
00:00:02]} 2. Nf3 {[%clk 01:29:43]} {[%emt 00:00:27]} Nf6 {[%clk 01:31:20]}
{[%emt 00:00:08]} 3. c4 {[%clk 01:30:07]} {[%emt 00:00:05]} c6 {[%clk
01:31:46]} {[%emt 00:00:05]} 4. g3 {[%clk 01:24:40]} {[%emt 00:05:57]} Bf5
{[%clk 01:30:40]} {[%emt 00:01:35]} 5. Bg2 {[%clk 01:18:15]} {[%emt 00:06:56]}
e6 {[%clk 01:28:34]} {[%emt 00:02:36]} 6. O-O {[%clk 01:17:26]} {[%emt
00:01:17]} Nbd7 {[%clk 01:26:37]} {[%emt 00:02:29]} 7. cxd5 {[%clk 01:10:01]}
{[%emt 00:07:55]} cxd5 {[%clk 01:23:26]} {[%emt 00:03:41]} 8. Nc3 {[%clk
01:09:00]} {[%emt 00:01:31]} h6 {[%clk 01:20:39]} {[%emt 00:03:17]} 9. Re1
{[%clk 01:04:51]} {[%emt 00:04:39]} Be7 {[%clk 01:18:30]} {[%emt 00:02:39]} 10.
Ne5 {[%clk 00:58:51]} {[%emt 00:06:29]} O-O {[%clk 01:17:10]} {[%emt 00:01:50]}
11. Qb3 {[%clk 00:54:56]} {[%emt 00:04:25]} Nxe5 {[%clk 01:14:11]} {[%emt
00:03:29]} 12. dxe5 {[%clk 00:55:05]} {[%emt 00:00:21]} Nd7 {[%clk 01:14:35]}
{[%emt 00:00:06]} 13. e4 {[%clk 00:47:51]} {[%emt 00:07:44]} Nc5 {[%clk
01:11:12]} {[%emt 00:03:53]} 14. Qd1 {[%clk 00:45:36]} {[%emt 00:02:46]} dxe4
{[%clk 01:11:22]} {[%emt 00:00:19]} 15. Qxd8 {[%clk 00:29:54]} {[%emt
00:16:11]} Rfxd8 {[%clk 01:08:17]} {[%emt 00:03:36]} 16. Nxe4 {[%clk 00:29:42]}
{[%emt 00:00:43]} Bxe4 {[%clk 01:05:24]} {[%emt 00:03:22]} 17. Bxe4 {[%clk
00:29:44]} {[%emt 00:00:28]} Nxe4 {[%clk 01:05:53]} {[%emt 00:00:02]} 18. Rxe4
{[%clk 00:30:13]} {[%emt 00:00:02]} Rd1+ {[%clk 01:06:07]} {[%emt 00:00:15]} 19.
Kg2 {[%clk 00:30:41]} {[%emt 00:00:01]} Rc8 {[%clk 01:06:20]} {[%emt 00:00:17]}
20. Bg5 {[%clk 00:29:40]} {[%emt 00:01:30]} Rxa1 {[%clk 01:06:44]} {[%emt
00:00:07]} 21. Bxe7 {[%clk 00:29:59]} {[%emt 00:00:12]} Rxa2 {[%clk 01:06:47]}
{[%emt 00:00:27]} 22. Ba3 {[%clk 00:28:12]} {[%emt 00:02:17]} Ra1 {[%clk
01:06:22]} {[%emt 00:00:55]} 23. Rd4 {[%clk 00:26:28]} {[%emt 00:02:13]} Re1
{[%clk 01:06:09]} {[%emt 00:00:43]} 24. Rd7 {[%clk 00:25:32]} {[%emt 00:01:26]}
Rxe5 {[%clk 01:05:48]} {[%emt 00:00:51]} 25. Rxb7 {[%clk 00:25:53]} {[%emt
00:00:09]} Ra5 {[%clk 01:05:22]} {[%emt 00:00:56]} 26. Bb4 {[%clk 00:25:18]}
{[%emt 00:01:05]} Ra4 {[%clk 01:05:18]} {[%emt 00:00:35]} 27. Bc3 {[%clk
00:25:26]} {[%emt 00:00:22]} Re8 {[%clk 01:00:51]} {[%emt 00:04:57]} 28. f4
{[%clk 00:25:06]} {[%emt 00:00:50]} Ra8 {[%clk 00:58:07]} {[%emt 00:03:14]} 29.
Kf3 {[%clk 00:24:14]} {[%emt 00:01:20]} Rc4 {[%clk 00:56:27]} {[%emt 00:02:11]}
30. Ke3 {[%clk 00:21:51]} {[%emt 00:02:53]} Rc6 {[%clk 00:55:44]} {[%emt
00:01:13]} 31. Kd3 {[%clk 00:20:33]} {[%emt 00:01:48]} a5 {[%clk 00:54:59]}
{[%emt 00:01:16]} 32. Bd4 {[%clk 00:20:06]} {[%emt 00:00:54]} a4 {[%clk
00:52:55]} {[%emt 00:02:36]} 33. Ra7 {[%clk 00:20:21]} {[%emt 00:00:15]} Rxa7
{[%clk 00:52:56]} {[%emt 00:00:30]} 34. Bxa7 {[%clk 00:20:47]} {[%emt
00:00:03]} Kf8 {[%clk 00:53:14]} {[%emt 00:00:12]} 35. Bd4 {[%clk 00:20:30]}
{[%emt 00:00:47]} f6 {[%clk 00:53:22]} {[%emt 00:00:22]} 36. Bc3 {[%clk
00:19:34]} {[%emt 00:01:27]} Kf7 {[%clk 00:53:11]} {[%emt 00:00:41]} 37. h4
{[%clk 00:19:29]} {[%emt 00:00:35]} Kg6 {[%clk 00:53:15]} {[%emt 00:00:26]} 38.
g4 {[%clk 00:19:53]} {[%emt 00:00:05]} h5 {[%clk 00:53:30]} {[%emt 00:00:15]}
39. g5 {[%clk 00:19:49]} {[%emt 00:00:34]} fxg5 {[%clk 00:52:46]} {[%emt
00:01:15]} 40. fxg5 {[%clk 00:20:12]} {[%emt 00:00:06]} Rc7 {[%clk 00:53:10]}
{[%emt 00:00:06]} 41. Be5 {[%clk 00:20:07]} {[%emt 00:00:35]} Ra7 {[%clk
00:53:23]} {[%emt 00:00:17]} 42. Ke4 {[%clk 00:20:30]} {[%emt 00:00:07]} a3
{[%clk 00:53:31]} {[%emt 00:00:23]} 43. bxa3 {[%clk 00:20:57]} {[%emt
00:00:02]} Rxa3 {[%clk 00:53:45]} {[%emt 00:00:16]} 44. Bd4 {[%clk 00:21:12]}
{[%emt 00:00:14]} Ra4 {[%clk 00:53:57]} {[%emt 00:00:19]} 45. Ke5 {[%clk
00:21:31]} {[%emt 00:00:12]} Rxd4 {[%clk 00:51:47]} {[%emt 00:02:40]} 46. Kxd4
{[%clk 00:21:49]} {[%emt 00:00:11]} Kf5 {[%clk 00:52:13]} {[%emt 00:00:04]} 47.
g6 {[%clk 00:21:41]} {[%emt 00:00:38]} Kxg6 {[%clk 00:52:31]} {[%emt 00:00:12]}
48. Ke5 {[%clk 00:22:06]} {[%emt 00:00:05]} Kf7 {[%clk 00:52:57]} {[%emt
00:00:04]} 49. Kf4 {[%clk 00:22:21]} {[%emt 00:00:13]} Kf6 {[%clk 00:53:23]}
{[%emt 00:00:06]} 50. Ke4 {[%clk 00:22:46]} {[%emt 00:00:04]} e5 {[%clk
00:53:43]} {[%emt 00:00:11]} 0-1

[Event "Mistrovství Čech mládeže 2023 - HD16"]
[Site "Harrachov, Czech Republic"]
[Date "2023.10.23"]
[Round "4.19"]
[White "Večeř, Martin"]
[Black "Dudarec, Elias"]
[Result "1-0"]
[TimeControl "90m + 30s"]
[WhiteElo "1569"]
[BlackElo "1535"]

1. Nf3 {[%clk 01:30:56]} {[%emt 00:00:03]} d5 {[%clk 01:30:35]} {[%emt
00:00:25]} 2. d4 {[%clk 01:31:18]} {[%emt 00:00:08]} Nf6 {[%clk 01:30:46]}
{[%emt 00:00:20]} 3. c4 {[%clk 01:31:28]} {[%emt 00:00:20]} e6 {[%clk
01:30:26]} {[%emt 00:00:50]} 4. g3 {[%clk 01:31:38]} {[%emt 00:00:19]} g6
{[%clk 01:29:30]} {[%emt 00:01:26]} 5. Bg2 {[%clk 01:30:55]} {[%emt 00:01:14]}
Bg7 {[%clk 01:28:35]} {[%emt 00:01:24]} 6. O-O {[%clk 01:29:53]} {[%emt
00:01:32]} O-O {[%clk 01:28:31]} {[%emt 00:00:34]} 7. Nc3 {[%clk 01:27:43]}
{[%emt 00:02:40]} b6 {[%clk 01:19:39]} {[%emt 00:09:22]} 8. Ne5 {[%clk
01:23:01]} {[%emt 00:05:12]} Bb7 {[%clk 01:12:19]} {[%emt 00:07:49]} 9. cxd5
{[%clk 01:18:51]} {[%emt 00:04:41]} Nxd5 {[%clk 01:09:31]} {[%emt 00:03:18]} 10.
f4 {[%clk 01:16:24]} {[%emt 00:02:57]} Nd7 {[%clk 00:54:30]} {[%emt 00:15:31]}
11. Qc2 {[%clk 01:10:17]} {[%emt 00:06:38]} Nxe5 {[%clk 00:47:09]} {[%emt
00:07:50]} 12. dxe5 {[%clk 01:09:10]} {[%emt 00:01:38]} Re8 {[%clk 00:45:46]}
{[%emt 00:01:53]} 13. Rd1 {[%clk 01:07:50]} {[%emt 00:01:50]} c6 {[%clk
00:33:36]} {[%emt 00:12:40]} 14. Ne4 {[%clk 01:01:23]} {[%emt 00:06:57]} Qe7
{[%clk 00:27:08]} {[%emt 00:06:58]} 15. Nd6 {[%clk 01:01:00]} {[%emt 00:00:53]}
Red8 {[%clk 00:26:53]} {[%emt 00:00:44]} 16. a3 {[%clk 00:59:07]} {[%emt
00:02:24]} f6 {[%clk 00:20:19]} {[%emt 00:07:03]} 17. e4 {[%clk 00:57:48]}
{[%emt 00:01:49]} fxe5 {[%clk 00:15:32]} {[%emt 00:05:17]} 18. Nxb7 {[%clk
00:57:00]} {[%emt 00:01:19]} Qxb7 {[%clk 00:15:53]} {[%emt 00:00:08]} 19. exd5
{[%clk 00:57:02]} {[%emt 00:00:28]} cxd5 {[%clk 00:15:55]} {[%emt 00:00:28]} 20.
fxe5 {[%clk 00:56:07]} {[%emt 00:01:26]} Bxe5 {[%clk 00:15:32]} {[%emt
00:00:52]} 21. Qe2 {[%clk 00:55:56]} {[%emt 00:00:41]} Qg7 {[%clk 00:13:49]}
{[%emt 00:02:12]} 22. Kh1 {[%clk 00:48:52]} {[%emt 00:07:35]} Rd6 {[%clk
00:06:43]} {[%emt 00:07:36]} 23. Re1 {[%clk 00:47:07]} {[%emt 00:02:15]} Bf6
{[%clk 00:07:01]} {[%emt 00:00:12]} 24. Bf4 {[%clk 00:45:01]} {[%emt 00:02:36]}
Rc6 {[%clk 00:07:07]} {[%emt 00:00:24]} 25. Rac1 {[%clk 00:41:41]} {[%emt
00:03:50]} Rac8 {[%clk 00:05:18]} {[%emt 00:02:19]} 26. Bxd5 {[%clk 00:41:37]}
{[%emt 00:00:35]} Rxc1 {[%clk 00:02:38]} {[%emt 00:03:09]} 27. Qxe6+ {[%clk
00:41:27]} {[%emt 00:00:41]} Kh8 {[%clk 00:02:48]} {[%emt 00:00:19]} 28. Rxc1
{[%clk 00:41:40]} {[%emt 00:00:17]} Rxc1+ {[%clk 00:02:54]} {[%emt 00:00:25]}
29. Bxc1 {[%clk 00:42:01]} {[%emt 00:00:09]} 1-0

[Event "Mistrovství Čech mládeže 2023 - HD16"]
[Site "Harrachov, Czech Republic"]
[Date "2023.10.23"]
[Round "4.20"]
[White "Tichý, Tomáš"]
[Black "Lána, Vincent"]
[Result "0-1"]
[TimeControl "90m + 30s"]
[WhiteElo "1697"]
[BlackElo "1342"]

1. e4 {[%clk 01:30:45]} {[%emt 00:00:14]} e6 {[%clk 01:30:53]} {[%emt
00:00:07]} 2. d4 {[%clk 01:31:09]} {[%emt 00:00:06]} d5 {[%clk 01:31:18]}
{[%emt 00:00:06]} 3. Nd2 {[%clk 01:31:35]} {[%emt 00:00:04]} dxe4 {[%clk
01:29:52]} {[%emt 00:01:56]} 4. Nxe4 {[%clk 01:31:42]} {[%emt 00:00:23]} Nf6
{[%clk 01:30:12]} {[%emt 00:00:09]} 5. Nxf6+ {[%clk 01:24:33]} {[%emt
00:07:40]} Qxf6 {[%clk 01:30:31]} {[%emt 00:00:11]} 6. Nf3 {[%clk 01:23:52]}
{[%emt 00:01:11]} h6 {[%clk 01:27:07]} {[%emt 00:03:53]} 7. Be3 {[%clk
01:18:21]} {[%emt 00:06:02]} Bd6 {[%clk 01:26:27]} {[%emt 00:01:10]} 8. Be2
{[%clk 01:15:06]} {[%emt 00:03:45]} Bd7 {[%clk 01:26:00]} {[%emt 00:00:57]} 9.
O-O {[%clk 01:13:50]} {[%emt 00:01:46]} Bc6 {[%clk 01:24:46]} {[%emt 00:01:44]}
10. c4 {[%clk 01:12:50]} {[%emt 00:01:30]} O-O {[%clk 01:24:24]} {[%emt
00:00:52]} 11. c5 {[%clk 01:09:01]} {[%emt 00:04:19]} Bf4 {[%clk 01:21:46]}
{[%emt 00:03:06]} 12. Qd2 {[%clk 01:01:53]} {[%emt 00:07:39]} Bxe3 {[%clk
01:20:46]} {[%emt 00:01:30]} 13. fxe3 {[%clk 01:01:07]} {[%emt 00:01:17]} Qe7
{[%clk 01:19:45]} {[%emt 00:01:31]} 14. Ne5 {[%clk 00:58:36]} {[%emt 00:03:02]}
Bd5 {[%clk 01:18:57]} {[%emt 00:01:17]} 15. Bh5 {[%clk 00:46:13]} {[%emt
00:12:52]} g6 {[%clk 01:11:43]} {[%emt 00:07:44]} 16. e4 {[%clk 00:29:20]}
{[%emt 00:17:23]} Bxe4 {[%clk 00:58:52]} {[%emt 00:13:20]} 17. Ng4 {[%clk
00:24:35]} {[%emt 00:05:16]} Nd7 {[%clk 00:44:39]} {[%emt 00:14:44]} 18. Nxh6+
{[%clk 00:20:03]} {[%emt 00:05:02]} Kg7 {[%clk 00:44:13]} {[%emt 00:00:55]} 19.
Bf3 {[%clk 00:18:29]} {[%emt 00:02:04]} Bxf3 {[%clk 00:43:48]} {[%emt
00:00:56]} 20. Rxf3 {[%clk 00:18:48]} {[%emt 00:00:11]} f5 {[%clk 00:42:11]}
{[%emt 00:02:06]} 21. g4 {[%clk 00:18:35]} {[%emt 00:00:44]} g5 {[%clk
00:38:37]} {[%emt 00:04:03]} 22. gxf5 {[%clk 00:14:08]} {[%emt 00:04:58]} Kxh6
{[%clk 00:38:34]} {[%emt 00:00:33]} 23. Re1 {[%clk 00:13:11]} {[%emt 00:01:25]}
e5 {[%clk 00:32:25]} {[%emt 00:06:40]} 24. Rh3+ {[%clk 00:07:29]} {[%emt
00:06:12]} Kg7 {[%clk 00:32:43]} {[%emt 00:00:12]} 25. dxe5 {[%clk 00:03:22]}
{[%emt 00:04:38]} Rxf5 {[%clk 00:31:01]} {[%emt 00:02:11]} 26. e6 {[%clk
00:01:52]} {[%emt 00:02:01]} Qxc5+ {[%clk 00:28:10]} {[%emt 00:03:20]} 27. Kh1
{[%clk 00:01:32]} {[%emt 00:00:51]} Nf6 {[%clk 00:27:39]} {[%emt 00:01:00]} 28.
e7 {[%clk 00:01:01]} {[%emt 00:01:02]} Qd5+ {[%clk 00:27:16]} {[%emt 00:00:52]}
29. Qxd5 {[%clk 00:01:08]} {[%emt 00:00:23]} Rxd5 {[%clk 00:27:39]} {[%emt
00:00:07]} 30. Rhe3 {[%clk 00:00:34]} {[%emt 00:01:04]} Re8 {[%clk 00:26:57]}
{[%emt 00:01:12]} 31. Rf1 {[%clk 00:00:39]} {[%emt 00:00:26]} Rd6 {[%clk
00:26:39]} {[%emt 00:00:46]} 32. Rf5 {[%clk 00:00:47]} {[%emt 00:00:23]} g4
{[%clk 00:25:39]} {[%emt 00:01:29]} 33. h3 {[%clk 00:00:35]} {[%emt 00:00:44]}
gxh3 {[%clk 00:25:37]} {[%emt 00:00:32]} 34. Rg3+ {[%clk 00:00:33]} {[%emt
00:00:33]} Kf7 {[%clk 00:25:31]} {[%emt 00:00:34]} 35. Rxh3 {[%clk 00:00:39]}
{[%emt 00:00:25]} Rxe7 {[%clk 00:25:36]} {[%emt 00:00:25]} 36. Rhf3 {[%clk
00:00:38]} {[%emt 00:00:31]} Re2 {[%clk 00:25:12]} {[%emt 00:00:53]} 37. Rf1
{[%clk 00:00:56]} {[%emt 00:00:13]} Rxb2 {[%clk 00:24:59]} {[%emt 00:00:42]} 38.
Rc5 {[%clk 00:01:13]} {[%emt 00:00:13]} c6 {[%clk 00:24:39]} {[%emt 00:00:50]}
39. Re5 {[%clk 00:01:18]} {[%emt 00:00:25]} Rxa2 {[%clk 00:23:41]} {[%emt
00:01:28]} 40. Rfe1 {[%clk 00:01:38]} {[%emt 00:00:11]} Rd7 {[%clk 00:22:58]}
{[%emt 00:01:13]} 41. Rf5 {[%clk 00:01:35]} {[%emt 00:00:33]} Rad2 {[%clk
00:22:38]} {[%emt 00:00:49]} 42. Ree5 {[%clk 00:01:17]} {[%emt 00:00:48]} R7d5
{[%clk 00:21:56]} {[%emt 00:01:13]} 0-1